fUSD/lending_fUSD_20260514
["ID","MTS","AMOUNT","RATE_DAILY","PERIOD"]
[422238770,1778743834000,-220.99852889,0.00014115,2]
[422238773,1778743834000,-500.0,0.00014116,2]
[422238771,1778743834000,-500.0,0.00014116,2]
[422238791,1778743834000,-150.0,0.00014116,2]
[422238772,1778743834000,-500.0,0.00014116,2]
[422238775,1778743834000,-500.0,0.00014116,2]
[422238777,1778743834000,-500.0,0.00014116,2]
[422238776,1778743834000,-500.0,0.00014116,2]
[422238778,1778743834000,-500.0,0.00014116,2]
[422238779,1778743834000,-500.0,0.00014116,2]
[422238783,1778743834000,-518.90185754,0.00014116,2]
[422238781,1778743834000,-500.0,0.00014116,2]
[422238782,1778743834000,-500.0,0.00014116,2]
[422238780,1778743834000,-500.0,0.00014116,2]
[422238784,1778743834000,-500.0,0.00014116,2]
[422238786,1778743834000,-500.0,0.00014116,2]
[422238785,1778743834000,-500.0,0.00014116,2]
[422238789,1778743834000,-500.0,0.00014116,2]
[422238787,1778743834000,-500.0,0.00014116,2]
[422238790,1778743834000,-586.69929855,0.00014116,2]
[422238788,1778743834000,-500.0,0.00014116,2]
[422238763,1778743834000,-500.0,0.00014115,2]
[422238764,1778743834000,-500.0,0.00014115,2]
[422238734,1778743834000,-500.0,0.00014052,2]
[422238760,1778743834000,-166.66,0.0001411,2]
[422238765,1778743834000,-300.44125118,0.00014115,2]
[422238739,1778743834000,-500.0,0.00014052,2]
[422238737,1778743834000,-500.0,0.00014052,2]
[422238738,1778743834000,-500.0,0.00014052,2]
[422238741,1778743834000,-500.0,0.00014052,2]
[422238740,1778743834000,-581.16129835,0.00014052,2]
[422238742,1778743834000,-500.0,0.00014052,2]
[422238735,1778743834000,-426.76411685,0.00014052,2]
[422238744,1778743834000,-500.0,0.00014052,2]
[422238743,1778743834000,-224.84834446,0.00014052,2]
[422238745,1778743834000,-500.0,0.00014052,2]
[422238750,1778743834000,-2500.0,0.00014053,2]
[422238748,1778743834000,-300.0,0.00014053,2]
[422238752,1778743834000,-205.94617357,0.00014053,2]
[422238751,1778743834000,-2500.0,0.00014053,2]
[422238762,1778743834000,-500.0,0.00014115,2]
[422238759,1778743834000,-662.26220892,0.00014106,2]
[422238761,1778743834000,-500.0,0.00014115,2]
[422238746,1778743834000,-175.31634934,0.00014052,2]
[422238758,1778743834000,-150.0,0.00014101,2]
[422238756,1778743834000,-19131.34691364,0.00014097,2]
[422238757,1778743834000,-19681.12139642,0.00014098,2]
[422238754,1778743834000,-150.0,0.00014067,2]
[422238747,1778743834000,-250.0,0.00014053,2]
[422238753,1778743834000,-150.0,0.00014064,2]
[422238749,1778743834000,-2500.0,0.00014053,2]
[422238755,1778743834000,-500.0,0.00014082,2]
[422238795,1778743835000,-65577.02855478,0.00014116,2]
[422238793,1778743835000,-6678.08221499,0.00014116,2]
[422238794,1778743835000,-12137.06833184,0.00014116,2]
[422238792,1778743835000,-146853.70607294,0.00014116,2]
[422238799,1778743838000,-500.0,0.00014052,2]
[422238803,1778743838000,-500.0,0.00014052,2]
[422238807,1778743838000,-500.0,0.00014052,2]
[422238805,1778743838000,-500.0,0.00014052,2]
[422238801,1778743838000,-500.0,0.00014052,2]
[422238849,1778743839000,-168.994335,0.0001425,2]
[422238844,1778743839000,-500.0,0.00014245,2]
[422238851,1778743839000,-150.0,0.00014271,2]
[422238847,1778743839000,-166.66,0.00014247,2]
[422238848,1778743839000,-20858.571524,0.0001425,2]
[422238850,1778743839000,-19131.34691364,0.0001426,2]
[422238852,1778743839000,-150.0,0.00014277,7]
[422238853,1778743839000,-175.41101549,0.00014277,7]
[422238855,1778743839000,-150.0,0.00014277,7]
[422238854,1778743839000,-500.0,0.00014277,7]
[422238865,1778743839000,-150.0,0.00014305,2]
[422238856,1778743839000,-500.0,0.00014277,7]
[422238857,1778743839000,-150.0,0.00014277,7]
[422238863,1778743839000,-19681.12139642,0.00014298,2]
[422238860,1778743839000,-298.59343092,0.00014277,7]
[422238859,1778743839000,-150.0,0.00014277,7]
[422238861,1778743839000,-5179.01823748,0.00014282,2]
[422238862,1778743839000,-150.0,0.00014295,2]
[422238864,1778743839000,-150.0,0.00014305,2]
[422238866,1778743839000,-500.0,0.00014308,2]
[422238867,1778743839000,-630.27780207,0.00014323,2]
[422238878,1778743839000,-152.0,0.00014387,2]
[422238868,1778743839000,-407979.7304122,0.00014325,2]
[422238870,1778743839000,-3137.6054391,0.00014325,2]
[422238869,1778743839000,-15163.4108578,0.00014325,2]
[422238877,1778743839000,-166.66,0.00014384,2]
[422238873,1778743839000,-662.26220892,0.00014341,2]
[422238858,1778743839000,-592.04750986,0.00014277,7]
[422238846,1778743839000,-397.84647269,0.00014246,2]
[422238825,1778743839000,-150.0,0.00014169,2]
[422238842,1778743839000,-502.39992149,0.00014245,2]
[422238809,1778743839000,-500.0,0.00014052,2]
[422238811,1778743839000,-500.0,0.00014052,2]
[422238826,1778743839000,-162.69145634,0.00014174,2]
[422238816,1778743839000,-500.0,0.00014052,2]
[422238818,1778743839000,-500.0,0.00014052,2]
[422238819,1778743839000,-500.0,0.00014052,2]
[422238821,1778743839000,-1835249.02583081,0.00014116,2]
[422238820,1778743839000,-433505.08899464,0.00014116,2]
[422238823,1778743839000,-5179.01823748,0.00014159,2]
[422238824,1778743839000,-150.0,0.00014169,2]
[422238822,1778743839000,-150.0,0.00014135,2]
[422238872,1778743839000,-150.0,0.00014339,2]
[422238828,1778743839000,-630.27780207,0.00014179,2]
[422238845,1778743839000,-478.0,0.00014245,2]
[422238827,1778743839000,-19131.34691364,0.00014178,2]
[422238832,1778743839000,-150.0,0.00014203,2]
[422238834,1778743839000,-7499.42871774,0.00014225,2]
[422238831,1778743839000,-19681.12139642,0.00014198,2]
[422238835,1778743839000,-3532.3559431,0.00014225,2]
[422238833,1778743839000,-1602.83,0.00014222,2]
[422238838,1778743839000,-150.0,0.00014237,2]
[422238837,1778743839000,-150.0,0.00014237,2]
[422238829,1778743839000,-150.0,0.00014179,2]
[422238839,1778743839000,-150.0,0.00014237,2]
[422238836,1778743839000,-212.17427541,0.00014225,2]
[422238841,1778743839000,-500.0,0.00014245,2]
[422238840,1778743839000,-625.7470238,0.00014245,2]
[422238843,1778743839000,-500.0,0.00014245,2]
[422238830,1778743839000,-158.11553461,0.0001418,2]
[422238871,1778743839000,-6478.7334275,0.00014325,2]
[422238814,1778743839000,-500.0,0.00014052,2]
[422238876,1778743839000,-150.0,0.00014373,2]
[422238912,1778743839000,-500.0,0.00014582,2]
[422238908,1778743839000,-210.60844671,0.00014576,2]
[422238916,1778743839000,-150.0,0.00014612,2]
[422238909,1778743839000,-150.0,0.00014578,2]
[422238911,1778743839000,-423.57087373,0.00014582,2]
[422238910,1778743839000,-150.0,0.00014578,2]
[422238914,1778743839000,-1528.0,0.000146,2]
[422238918,1778743839000,-630.27780207,0.00014612,2]
[422238919,1778743839000,-167.26,0.00014616,2]
[422238921,1778743839000,-150.0,0.00014646,2]
[422238920,1778743839000,-150.0,0.0001464,2]
[422238922,1778743839000,-5179.01823748,0.00014653,2]
[422238923,1778743839000,-150.0,0.0001468,2]
[422238913,1778743839000,-19681.12139642,0.00014599,2]
[422238926,1778743839000,-182.11016825,0.000147,2]
[422238927,1778743839000,-2300.0,0.000147,5]
[422238929,1778743839000,-150.0,0.00014714,2]
[422238925,1778743839000,-169.7,0.000147,2]
[422238928,1778743839000,-150.0,0.00014714,2]
[422238930,1778743839000,-500.0,0.00014723,2]
[422238931,1778743839000,-590.8172916,0.00014723,2]
[422238932,1778743839000,-150.0,0.00014737,2]
[422238933,1778743839000,-1598.0,0.00014738,2]
[422238937,1778743839000,-630.27780207,0.00014756,2]
[422238938,1778743839000,-164.94,0.0001476,2]
[422238936,1778743839000,-150.0,0.00014756,2]
[422238934,1778743839000,-158.11553461,0.00014746,2]
[422238874,1778743839000,-1500000.0,0.00014351,2]
[422238924,1778743839000,-19681.12139642,0.000147,2]
[422238915,1778743839000,-255.0,0.00014606,2]
[422238935,1778743839000,-150.0,0.00014748,2]
[422238917,1778743839000,-150.0,0.00014612,2]
[422238875,1778743839000,-1645.0,0.0001436,2]
[422238879,1778743839000,-19681.12139642,0.00014399,2]
[422238880,1778743839000,-5179.01823748,0.00014406,2]
[422238881,1778743839000,-150.0,0.00014407,2]
[422238891,1778743839000,-150.0,0.00014487,2]
[422238883,1778743839000,-2000.0,0.00014438,2]
[422238882,1778743839000,-150.0,0.0001441,2]
[422238889,1778743839000,-150.0,0.00014475,2]
[422238906,1778743839000,-3532.35594309,0.00014563,2]
[422238890,1778743839000,-150.0,0.00014487,2]
[422238886,1778743839000,-201.9544886,0.00014442,2]
[422238884,1778743839000,-150.0,0.00014441,2]
[422238887,1778743839000,-158.11553461,0.00014463,2]
[422238885,1778743839000,-150.0,0.00014441,2]
[422238888,1778743839000,-630.27780207,0.00014468,2]
[422238894,1778743839000,-11235.18,0.00014504,2]
[422238907,1778743839000,-212.1742754,0.00014563,2]
[422238892,1778743839000,-4907.19170556,0.00014494,2]
[422238902,1778743839000,-150.0,0.00014544,2]
[422238901,1778743839000,-5179.01823748,0.00014529,2]
[422238899,1778743839000,-473.77523904,0.0001451,2]
[422238900,1778743839000,-150.0,0.00014525,2]
[422238905,1778743839000,-7499.42871773,0.00014563,2]
[422238903,1778743839000,-789.58,0.00014553,2]
[422238897,1778743839000,-850.66,0.00014504,2]
[422238896,1778743839000,-4646.53,0.00014504,2]
[422238893,1778743839000,-19681.12139642,0.00014499,2]
[422238895,1778743839000,-7269.33,0.00014504,2]
[422238904,1778743839000,-384.81118436,0.00014563,2]
[422238898,1778743839000,-150.0,0.00014509,2]
[422238981,1778743840000,-3532.35594309,0.000149,2]
[422238980,1778743840000,-7499.42871773,0.000149,2]
[422238979,1778743840000,-384.81118436,0.000149,2]
[422238977,1778743840000,-2435.0,0.000149,5]
[422238974,1778743840000,-3043.0,0.000149,5]
[422238975,1778743840000,-9125.754,0.000149,2]
[422238973,1778743840000,-340.0,0.00014896,2]
[422238972,1778743840000,-344.0,0.00014896,2]
[422238971,1778743840000,-182.0,0.00014895,2]
[422238970,1778743840000,-150.0,0.00014884,2]
[422238978,1778743840000,-2300.0,0.000149,5]
[422238976,1778743840000,-22221.68808315,0.000149,3]
[422238993,1778743840000,-150.0,0.00014952,2]
[422238983,1778743840000,-5179.01823748,0.000149,2]
[422238982,1778743840000,-6643.51158342,0.000149,3]
[422238985,1778743840000,-212.1742754,0.000149,2]
[422238986,1778743840000,-328.0,0.00014909,2]
[422238988,1778743840000,-150.0,0.00014918,2]
[422238990,1778743840000,-340.0,0.00014929,2]
[422238989,1778743840000,-228.0,0.00014926,2]
[422238998,1778743840000,-150.0,0.00014986,2]
[422238987,1778743840000,-177.24,0.00014914,2]
[422238991,1778743840000,-340.0,0.00014951,2]
[422238994,1778743840000,-12625.7586908,0.00014965,2]
[422238969,1778743840000,-200.0,0.0001488,2]
[422238984,1778743840000,-630.27780207,0.000149,2]
[422238967,1778743840000,-340.0,0.00014876,2]
[422238953,1778743840000,-1406.655,0.00014833,2]
[422238966,1778743840000,-150.0,0.00014871,2]
[422238995,1778743840000,-340.0,0.00014977,2]
[422238939,1778743840000,-5179.01823748,0.00014776,2]
[422238941,1778743840000,-371.0,0.00014781,2]
[422238940,1778743840000,-270.1425429,0.00014777,2]
[422238942,1778743840000,-150.0,0.00014782,2]
[422238944,1778743840000,-340.0,0.00014793,2]
[422238946,1778743840000,-2300.0,0.000148,5]
[422238947,1778743840000,-150.0,0.00014816,2]
[422238949,1778743840000,-270.15,0.00014826,2]
[422238943,1778743840000,-340.0,0.00014789,2]
[422238948,1778743840000,-340.0,0.00014823,2]
[422238945,1778743840000,-340.0,0.00014797,2]
[422238952,1778743840000,-15000.0,0.0001483,2]
[422238950,1778743840000,-789.58,0.00014827,2]
[422238951,1778743840000,-152.77610571,0.0001483,2]
[422238954,1778743840000,-164.099,0.00014833,2]
[422238956,1778743840000,-152.0,0.00014838,7]
[422238955,1778743840000,-152.0,0.00014838,7]
[422238960,1778743840000,-10000.0,0.0001485,2]
[422238957,1778743840000,-1106.10975102,0.00014842,2]
[422238959,1778743840000,-6111.0,0.00014847,2]
[422238962,1778743840000,-386.16164,0.0001485,2]
[422238958,1778743840000,-152.0,0.00014847,7]
[422238961,1778743840000,-107509.08238729,0.0001485,2]
[422238963,1778743840000,-150.0,0.0001485,2]
[422238965,1778743840000,-167.0,0.00014856,2]
[422238964,1778743840000,-150.0,0.0001485,2]
[422238968,1778743840000,-1000.0,0.0001488,2]
[422238996,1778743840000,-301.0,0.00014977,2]
[422239008,1778743840000,-357.156728,0.00014991,2]
[422238999,1778743840000,-150.0,0.00014986,2]
[422239034,1778743840000,-501.79454957,0.00014998,2]
[422239032,1778743840000,-502.08015061,0.00014998,2]
[422239033,1778743840000,-504.92408735,0.00014998,2]
[422239035,1778743840000,-500.0,0.00014998,2]
[422239029,1778743840000,-504.50026505,0.00014998,2]
[422239031,1778743840000,-506.53569257,0.00014998,2]
[422239036,1778743840000,-500.0,0.00014998,2]
[422239039,1778743840000,-568.79652285,0.00014999,2]
[422239041,1778743840000,-152.75274565,0.00014999,2]
[422239040,1778743840000,-148249.7001054,0.00014999,2]
[422239044,1778743840000,-500.0,0.00014999,2]
[422239046,1778743840000,-500.0,0.00014999,2]
[422239030,1778743840000,-502.51953061,0.00014998,2]
[422239045,1778743840000,-500.0,0.00014999,2]
[422239042,1778743840000,-343.4272415,0.00014999,2]
[422239049,1778743840000,-500.0,0.00014999,2]
[422238997,1778743840000,-662.26220892,0.00014981,2]
[422239047,1778743840000,-500.0,0.00014999,2]
[422239050,1778743840000,-500.0,0.00014999,2]
[422239051,1778743840000,-500.0,0.00014999,2]
[422239052,1778743840000,-500.0,0.00014999,2]
[422239053,1778743840000,-524.1684879,0.00014999,2]
[422239057,1778743840000,-500.0,0.00014999,2]
[422239054,1778743840000,-500.0,0.00014999,2]
[422239056,1778743840000,-497.7,0.00014999,2]
[422239055,1778743840000,-500.0,0.00014999,2]
[422239043,1778743840000,-680.46364814,0.00014999,2]
[422239028,1778743840000,-500.0,0.00014998,2]
[422239048,1778743840000,-510.62007951,0.00014999,2]
[422239037,1778743840000,-500.0,0.00014998,2]
[422239027,1778743840000,-500.0,0.00014998,2]
[422239001,1778743840000,-248.12623186,0.00014986,2]
[422239011,1778743840000,-151.0,0.00014991,2]
[422239000,1778743840000,-150.0,0.00014986,2]
[422239004,1778743840000,-288.37111373,0.00014986,2]
[422239005,1778743840000,-295.65448493,0.00014986,2]
[422239002,1778743840000,-278.33797665,0.00014986,2]
[422239003,1778743840000,-279.88135709,0.00014986,2]
[422239010,1778743840000,-357.156728,0.00014991,2]
[422239009,1778743840000,-357.156728,0.00014991,2]
[422239007,1778743840000,-357.156728,0.00014991,2]
[422239012,1778743840000,-2377.493607,0.00014991,2]
[422239021,1778743840000,-908.018583,0.00014991,2]
[422239006,1778743840000,-1526159.8130117,0.00014991,2]
[422239019,1778743840000,-908.018583,0.00014991,2]
[422239038,1778743840000,-500.0,0.00014998,2]
[422239016,1778743840000,-151.0,0.00014991,2]
[422239026,1778743840000,-151.0,0.00014997,2]
[422239023,1778743840000,-151.0,0.00014991,2]
[422239018,1778743840000,-151.0,0.00014991,2]
[422239024,1778743840000,-151.0,0.00014991,2]
[422239022,1778743840000,-908.018583,0.00014991,2]
[422239014,1778743840000,-2377.493607,0.00014991,2]
[422239015,1778743840000,-2377.493607,0.00014991,2]
[422239017,1778743840000,-151.0,0.00014991,2]
[422239025,1778743840000,-151.0,0.00014991,2]
[422239013,1778743840000,-2377.493607,0.00014991,2]
[422239020,1778743840000,-908.018583,0.00014991,2]
[422239083,1778743841000,-926.0,0.00014999,2]
[422239084,1778743841000,-345557.14241204,0.00015,2]
[422239082,1778743841000,-3542.0,0.00014999,2]
[422239077,1778743841000,-187.16915046,0.00014999,2]
[422239100,1778743841000,-1000.0,0.00015,2]
[422239073,1778743841000,-308.68353839,0.00014999,2]
[422239075,1778743841000,-300.0,0.00014999,2]
[422239085,1778743841000,-8463941.66559494,0.00015,2]
[422239099,1778743841000,-3850.0,0.00015,2]
[422239090,1778743841000,-1014.0,0.00015,2]
[422239089,1778743841000,-656525.67415431,0.00015,2]
[422239091,1778743841000,-169.7,0.00015,2]
[422239092,1778743841000,-150.0,0.00015,2]
[422239101,1778743841000,-1000.0,0.00015,2]
[422239103,1778743841000,-200.0,0.00015,2]
[422239078,1778743841000,-150.0,0.00014999,2]
[422239088,1778743841000,-7705.80141735,0.00015,2]
[422239081,1778743841000,-150.0,0.00014999,2]
[422239064,1778743841000,-500.0,0.00014999,2]
[422239071,1778743841000,-500.0,0.00014999,2]
[422239058,1778743841000,-500.0,0.00014999,2]
[422239061,1778743841000,-500.0,0.00014999,2]
[422239059,1778743841000,-500.0,0.00014999,2]
[422239062,1778743841000,-500.0,0.00014999,2]
[422239060,1778743841000,-192.0106329,0.00014999,2]
[422239065,1778743841000,-500.0,0.00014999,2]
[422239069,1778743841000,-500.0,0.00014999,2]
[422239079,1778743841000,-1270.0,0.00014999,2]
[422239068,1778743841000,-500.0,0.00014999,2]
[422239067,1778743841000,-500.0,0.00014999,2]
[422239070,1778743841000,-500.0,0.00014999,2]
[422239066,1778743841000,-500.0,0.00014999,2]
[422239072,1778743841000,-277.6,0.00014999,2]
[422239074,1778743841000,-681.41248099,0.00014999,2]
[422239076,1778743841000,-300.0,0.00014999,2]
[422239080,1778743841000,-1233.176,0.00014999,2]
[422239063,1778743841000,-500.0,0.00014999,2]
[422239102,1778743841000,-1137.74977319,0.00015,2]
[422239108,1778743841000,-151.0,0.00015,2]
[422239104,1778743841000,-151.0,0.00015,2]
[422239118,1778743841000,-151.0,0.00015,2]
[422239127,1778743841000,-1539.0,0.00015,2]
[422239126,1778743841000,-1539.0,0.00015,2]
[422239121,1778743841000,-1539.0,0.00015,2]
[422239120,1778743841000,-199.49064932,0.00015,2]
[422239122,1778743841000,-1539.0,0.00015,2]
[422239125,1778743841000,-1539.0,0.00015,2]
[422239130,1778743841000,-1539.0,0.00015,2]
[422239123,1778743841000,-1539.0,0.00015,2]
[422239132,1778743841000,-1657.31853749,0.00015,2]
[422239131,1778743841000,-1539.0,0.00015,2]
[422239133,1778743841000,-151.0,0.00015,2]
[422239135,1778743841000,-184.918819,0.00015,2]
[422239136,1778743841000,-184.918819,0.00015,2]
[422239134,1778743841000,-151.0,0.00015,2]
[422239098,1778743841000,-2210.41753017,0.00015,2]
[422239128,1778743841000,-1539.0,0.00015,2]
[422239129,1778743841000,-1539.0,0.00015,2]
[422239124,1778743841000,-1539.0,0.00015,2]
[422239114,1778743841000,-1539.0,0.00015,2]
[422239093,1778743841000,-4178.02219016,0.00015,2]
[422239094,1778743841000,-150.0,0.00015,2]
[422239095,1778743841000,-21659.16403148,0.00015,2]
[422239097,1778743841000,-433.39,0.00015,2]
[422239117,1778743841000,-1539.0,0.00015,2]
[422239106,1778743841000,-200.0,0.00015,2]
[422239116,1778743841000,-151.0,0.00015,2]
[422239105,1778743841000,-762.51306104,0.00015,2]
[422239096,1778743841000,-150.0,0.00015,2]
[422239119,1778743841000,-1539.0,0.00015,2]
[422239110,1778743841000,-151.0,0.00015,2]
[422239109,1778743841000,-197.671785,0.00015,2]
[422239111,1778743841000,-1539.0,0.00015,2]
[422239113,1778743841000,-151.0,0.00015,2]
[422239115,1778743841000,-151.0,0.00015,2]
[422239107,1778743841000,-151.0,0.00015,2]
[422239112,1778743841000,-1539.0,0.00015,2]
[422239173,1778743842000,-151.0,0.00015,2]
[422239174,1778743842000,-151.0,0.00015,2]
[422239169,1778743842000,-908.018583,0.00015,2]
[422239176,1778743842000,-15000.0,0.00015012,2]
[422239170,1778743842000,-908.018583,0.00015,2]
[422239178,1778743842000,-6111.0,0.00015027,2]
[422239168,1778743842000,-151.0,0.00015,2]
[422239177,1778743842000,-330.0,0.00015014,3]
[422239166,1778743842000,-151.0,0.00015,2]
[422239171,1778743842000,-908.018583,0.00015,2]
[422239175,1778743842000,-151.0,0.00015,2]
[422239172,1778743842000,-908.018583,0.00015,2]
[422239180,1778743842000,-6111.0,0.00015051,2]
[422239179,1778743842000,-15000.0,0.0001504,2]
[422239181,1778743842000,-1447.27242209,0.00015061,2]
[422239184,1778743842000,-892.364592,0.00015068,2]
[422239182,1778743842000,-900.0,0.00015068,2]
[422239185,1778743842000,-892.364592,0.00015068,2]
[422239190,1778743842000,-892.364592,0.00015068,2]
[422239167,1778743842000,-151.0,0.00015,2]
[422239188,1778743842000,-892.364592,0.00015068,2]
[422239191,1778743842000,-15000.0,0.00015083,2]
[422239186,1778743842000,-892.364592,0.00015068,2]
[422239187,1778743842000,-892.364592,0.00015068,2]
[422239183,1778743842000,-892.364592,0.00015068,2]
[422239161,1778743842000,-151.0,0.00015,2]
[422239159,1778743842000,-386.16163,0.00015,2]
[422239164,1778743842000,-2377.493607,0.00015,2]
[422239142,1778743842000,-184.918819,0.00015,2]
[422239137,1778743842000,-184.918819,0.00015,2]
[422239139,1778743842000,-184.918819,0.00015,2]
[422239138,1778743842000,-184.918819,0.00015,2]
[422239141,1778743842000,-184.918819,0.00015,2]
[422239154,1778743842000,-357.156728,0.00015,2]
[422239144,1778743842000,-1167.106651,0.00015,2]
[422239145,1778743842000,-1167.106651,0.00015,2]
[422239143,1778743842000,-1167.106651,0.00015,2]
[422239153,1778743842000,-357.156728,0.00015,2]
[422239149,1778743842000,-1167.106651,0.00015,2]
[422239150,1778743842000,-1167.106651,0.00015,2]
[422239147,1778743842000,-1167.106651,0.00015,2]
[422239146,1778743842000,-1167.106651,0.00015,2]
[422239151,1778743842000,-357.156728,0.00015,2]
[422239152,1778743842000,-357.156728,0.00015,2]
[422239148,1778743842000,-1167.106651,0.00015,2]
[422239155,1778743842000,-419.42018,0.00015,2]
[422239189,1778743842000,-892.364592,0.00015068,2]
[422239158,1778743842000,-386.16164,0.00015,2]
[422239157,1778743842000,-419.42017,0.00015,2]
[422239156,1778743842000,-419.42017,0.00015,2]
[422239163,1778743842000,-2377.493607,0.00015,2]
[422239160,1778743842000,-386.16163,0.00015,2]
[422239165,1778743842000,-2377.493607,0.00015,2]
[422239162,1778743842000,-2377.493607,0.00015,2]
[422239193,1778743842000,-789.58,0.00015101,2]
[422239140,1778743842000,-184.918819,0.00015,2]
[422239192,1778743842000,-1500.0,0.000151,2]
[422239225,1778743842000,-316.01210587,0.00016,2]
[422239223,1778743842000,-300.0,0.00016,2]
[422239227,1778743842000,-9999.99,0.00016116,2]
[422239234,1778743842000,-629.126431,0.00016438,2]
[422239228,1778743842000,-300.0,0.00016256,2]
[422239235,1778743842000,-5846.828321,0.00016438,2]
[422239237,1778743842000,-153.0,0.00016438,2]
[422239229,1778743842000,-2792.8,0.00016438,2]
[422239238,1778743842000,-240.07820667,0.00016438,2]
[422239236,1778743842000,-5846.828321,0.00016438,2]
[422239230,1778743842000,-491.34122884,0.00016438,2]
[422239231,1778743842000,-629.126431,0.00016438,2]
[422239233,1778743842000,-629.126431,0.00016438,2]
[422239232,1778743842000,-629.126431,0.00016438,2]
[422239239,1778743842000,-5846.828321,0.00016438,2]
[422239240,1778743842000,-5846.828321,0.00016438,2]
[422239241,1778743842000,-5846.828321,0.00016438,2]
[422239245,1778743842000,-900.0,0.00016438,2]
[422239243,1778743842000,-5846.828321,0.00016438,2]
[422239242,1778743842000,-5846.828321,0.00016438,2]
[422239244,1778743842000,-5846.828321,0.00016438,2]
[422239247,1778743842000,-4441.69740947,0.000165,2]
[422239248,1778743842000,-7430.71896728,0.000165,2]
[422239246,1778743842000,-1596.86,0.00016474,2]
[422239203,1778743842000,-447.75,0.00015375,2]
[422239224,1778743842000,-214.95940296,0.00016,3]
[422239218,1778743842000,-150.52776597,0.000159,2]
[422239226,1778743842000,-2000.0,0.00016042,2]
[422239220,1778743842000,-150.94231084,0.000159,2]
[422239194,1778743842000,-175.0,0.0001513,2]
[422239202,1778743842000,-384.23821774,0.0001535,2]
[422239199,1778743842000,-627.0,0.00015266,2]
[422239201,1778743842000,-167.26,0.0001534,2]
[422239197,1778743842000,-5539.0,0.000152,2]
[422239195,1778743842000,-200.0,0.0001515,2]
[422239196,1778743842000,-200.0,0.0001515,2]
[422239198,1778743842000,-505.0,0.000152,2]
[422239200,1778743842000,-200.0,0.00015301,2]
[422239219,1778743842000,-150.0,0.000159,2]
[422239204,1778743842000,-2351.0,0.00015385,2]
[422239215,1778743842000,-161.3,0.00015879,2]
[422239206,1778743842000,-994.62,0.0001548,7]
[422239205,1778743842000,-166.61,0.00015473,2]
[422239207,1778743842000,-999.0,0.000155,2]
[422239221,1778743842000,-150.0,0.000159,2]
[422239212,1778743842000,-1539.0,0.00015822,2]
[422239216,1778743842000,-150.0,0.000159,2]
[422239217,1778743842000,-150.0,0.000159,2]
[422239214,1778743842000,-180.60966794,0.00015842,5]
[422239222,1778743842000,-150.43937878,0.000159,2]
[422239211,1778743842000,-433.0,0.0001582,2]
[422239209,1778743842000,-729.99410376,0.00015695,2]
[422239213,1778743842000,-300.0,0.00015822,2]
[422239208,1778743842000,-15226.56,0.00015665,46]
[422239210,1778743842000,-166.45,0.00015817,2]
[422239260,1778743844000,-200.0,0.00016888,2]
[422239254,1778743844000,-19681.12139642,0.000148,2]
[422239255,1778743844000,-5618.38666812,0.000165,2]
[422239256,1778743844000,-156.51,0.00016712,2]
[422239257,1778743844000,-180.60966794,0.0001676,8]
[422239258,1778743844000,-163.0,0.00016799,2]
[422239259,1778743844000,-433.39,0.000168,2]